fUST/lending_fUST_20250927
["ID","MTS","AMOUNT","RATE_DAILY","PERIOD"]
[388042578,1758987038397,-182.784,0.00027193,15]
[388042579,1758987038407,-1680.0,0.00027204,2]
[388042580,1758987038417,-500.0,0.00027361,2]
[388042581,1758987038427,-160.0,0.0002745,2]
[388042582,1758987038437,-500.0,0.00027635,2]
[388042583,1758987038447,-480.81169604,0.00027696,5]
[388042584,1758987038456,-650.16966115,0.00027696,5]
[388042585,1758987038466,-1000.0,0.00027696,5]
[388042586,1758987038476,-1500.0,0.00027696,5]
[388042587,1758987038486,-280.76074951,0.00027696,5]
[388042588,1758987038496,-500.0,0.00027909,2]
[388042589,1758987038506,-260.0,0.00027998,2]
[388042590,1758987038516,-380.0,0.00028082,2]
[388042591,1758987038526,-500.0,0.00028183,2]
[388042592,1758987038536,-1997.64106052,0.00028244,5]
[388042593,1758987038546,-500.0,0.00028457,2]
[388042594,1758987038556,-360.0,0.00028546,2]
[388042595,1758987038566,-373.05775895,0.00028731,2]
[388042596,1758987038576,-3273.61963606,0.00029,3]
[388042597,1758987038586,-460.0,0.00029094,2]
[388042598,1758987038595,-587.0,0.00029338,2]
[388042599,1758987038605,-167.0,0.00029338,2]
[388042600,1758987038615,-2326.0,0.00029604,2]
[388042601,1758987038626,-560.0,0.00029642,2]
[388042602,1758987038636,-724.42239972,0.0003,60]
[388042603,1758987038649,-660.0,0.0003019,2]
[388042604,1758987038659,-1000.0,0.00030253,7]
[388042605,1758987038669,-151.0,0.00030253,7]
[388042606,1758987038679,-760.0,0.00030738,2]
[388042607,1758987038688,-254.15929041,0.00030942,2]
[388042608,1758987038698,-168.0,0.00031192,2]
[388042609,1758987038709,-180.0,0.00031286,2]
[388042610,1758987038718,-168.0,0.0003136,2]
[388042611,1758987038728,-168.0,0.00031701,7]
[388042612,1758987038738,-823.0,0.00031783,2]
[388042613,1758987038748,-439.0,0.00031826,2]
[388042614,1758987038757,-439.0,0.00031857,7]
[388042615,1758987038767,-153.48,0.0003189,10]
[388042616,1758987038777,-11531.88946853,0.000319,2]
[388042617,1758987038787,-19831.9906986,0.0003197,2]
[388042618,1758987038798,-39663.9813972,0.0003198,2]
[388042619,1758987038809,-333.84,0.0003198,3]
[388042620,1758987038819,-166.92,0.0003198,3]
[388042621,1758987038829,-739.32,0.0003198,3]
[388042622,1758987038840,-715.68,0.0003198,3]
[388042623,1758987038850,-762.03,0.0003198,3]
[388042624,1758987038860,-100000.0,0.0003199,2]
[388042625,1758987038869,-151.0,0.0003199,7]
[388042626,1758987038879,-151.0,0.0003199,7]
[388042627,1758987038888,-151.0,0.0003199,7]
[388042628,1758987038899,-154.920369,0.0003199,7]
[388042629,1758987038908,-151.0,0.0003199,7]
[388042630,1758987038918,-151.0,0.0003199,7]
[388042631,1758987038928,-189.33502,0.0003199,7]
[388042632,1758987038937,-178.24474853,0.00032,120]
[388042633,1758987038947,-203.44963791,0.00032,120]
[388042634,1758987038957,-175.55100817,0.00032,120]
[388042635,1758987038967,-217.99592755,0.00032,120]
[388042636,1758987038976,-270.76858587,0.00032009,2]
[388042637,1758987038986,-500.0,0.00032179,5]
[388042638,1758987038996,-1033.00774381,0.00032276,2]
[388042639,1758987039005,-439.0,0.000323,7]
[388042640,1758987039014,-178.24474853,0.000323,120]
[388042641,1758987039023,-175.55100817,0.000323,120]
[388042642,1758987039032,-9710.2666088,0.00032346,2]
[388042643,1758987039042,-178487.916287,0.00032366,2]
[388042644,1758987039051,-308.81882784,0.00032366,2]
[388042645,1758987039060,-151.0,0.00032366,7]
[388042646,1758987039070,-151.0,0.00032366,7]
[388042647,1758987039079,-151.0,0.00032366,7]
[388042648,1758987039089,-151.0,0.00032366,7]
[388042649,1758987039098,-151.0,0.00032366,7]
[388042650,1758987039107,-151.0,0.00032366,7]
[388042651,1758987039117,-151.0,0.00032366,7]
[388042652,1758987039126,-151.0,0.00032366,7]
[388042653,1758987039136,-151.0,0.00032366,7]
[388042654,1758987039146,-151.0,0.00032366,7]
[388042655,1758987039155,-151.0,0.00032366,7]
[388042656,1758987039165,-698.590361,0.00032366,7]
[388042657,1758987039175,-195.623985,0.00032366,7]
[388042658,1758987039185,-698.590361,0.00032366,7]
[388042659,1758987039195,-195.623985,0.00032366,7]
[388042660,1758987039205,-698.590361,0.00032366,7]
[388042661,1758987039215,-195.623985,0.00032366,7]
[388042662,1758987039226,-698.590361,0.00032366,7]
[388042663,1758987039236,-151.0,0.00032366,7]
[388042664,1758987039246,-195.623985,0.00032366,7]
[388042665,1758987039256,-197.584055,0.00032366,7]
[388042666,1758987039265,-197.584055,0.00032366,7]
[388042667,1758987039275,-197.584055,0.00032366,7]
[388042668,1758987039285,-151.0,0.00032366,7]
[388042669,1758987039294,-197.584055,0.00032366,7]
[388042670,1758987039303,-151.0,0.00032366,7]
[388042671,1758987039313,-151.0,0.00032366,7]
[388042672,1758987039323,-223.646784,0.00032366,7]
[388042673,1758987039333,-151.0,0.00032366,7]
[388042674,1758987039342,-151.0,0.00032366,7]
[388042675,1758987039352,-267.31193,0.00032366,7]
[388042676,1758987039361,-151.0,0.00032366,7]
[388042677,1758987039370,-151.0,0.00032366,7]
[388042678,1758987039380,-160.0,0.00032366,7]
[388042679,1758987039390,-151.0,0.00032366,7]
[388042680,1758987039399,-151.0,0.00032366,7]
[388042681,1758987039408,-151.0,0.00032366,7]
[388042682,1758987039418,-151.0,0.00032366,7]
[388042683,1758987039428,-151.0,0.00032366,7]
[388042684,1758987039437,-151.0,0.00032366,7]
[388042685,1758987039447,-151.0,0.00032366,7]
[388042686,1758987039456,-151.0,0.00032366,7]
[388042687,1758987039466,-151.0,0.00032366,7]
[388042688,1758987039475,-151.0,0.00032366,7]
[388042689,1758987039485,-500.0,0.00032373,5]
[388042690,1758987039494,-161.42545498,0.00032373,5]
[388042692,1758987039504,-500.0,0.00032373,5]
[388042694,1758987039513,-500.0,0.00032373,5]
[388042695,1758987039523,-500.0,0.00032373,5]
[388042696,1758987039533,-500.0,0.00032373,3]
[388042697,1758987039542,-500.0,0.00032373,5]
[388042698,1758987039551,-323.78510918,0.00032373,5]
[388042699,1758987039560,-500.0,0.00032373,5]
[388042701,1758987039570,-500.0,0.00032373,5]
[388042703,1758987039579,-196.97130597,0.00032376,3]
[388042704,1758987039588,-370000.0,0.00032376,2]
[388042706,1758987039597,-151.0,0.00032376,7]
[388042708,1758987039607,-151.0,0.00032376,7]
[388042710,1758987039616,-151.0,0.00032376,7]
[388042712,1758987039625,-151.0,0.00032376,7]
[388042713,1758987039636,-288.196885,0.00032376,7]
[388042714,1758987039650,-151.0,0.00032376,7]
[388042715,1758987039659,-151.0,0.00032376,7]
[388042716,1758987039668,-151.0,0.00032376,7]
[388042717,1758987039678,-151.0,0.00032376,7]
[388042718,1758987039689,-160.890888,0.00032376,7]
[388042719,1758987039699,-151.0,0.00032376,7]
[388042720,1758987039709,-151.0,0.00032376,7]
[388042721,1758987039720,-151.0,0.00032376,7]
[388042722,1758987039730,-151.0,0.00032376,7]
[388042723,1758987039739,-183.621458,0.00032376,7]
[388042724,1758987039750,-151.0,0.00032376,7]
[388042725,1758987039759,-151.0,0.00032376,7]
[388042727,1758987039768,-151.0,0.00032376,7]
[388042729,1758987039778,-151.0,0.00032376,7]
[388042730,1758987039787,-151.0,0.00032376,7]
[388042731,1758987039799,-151.0,0.00032376,7]
[388042732,1758987039808,-698.590361,0.00032376,7]
[388042733,1758987039818,-195.623985,0.00032376,7]
[388042734,1758987039828,-698.590361,0.00032376,7]
[388042735,1758987039838,-195.623985,0.00032376,7]
[388042736,1758987039847,-698.590361,0.00032376,7]
[388042737,1758987039857,-195.623985,0.00032376,7]
[388042738,1758987039866,-698.590361,0.00032376,7]
[388042739,1758987039875,-151.0,0.00032376,7]
[388042740,1758987039884,-195.623985,0.00032376,7]
[388042741,1758987039894,-197.584055,0.00032376,7]
[388042742,1758987039903,-197.584055,0.00032376,7]
[388042743,1758987039913,-197.584055,0.00032376,7]
[388042744,1758987039922,-151.0,0.00032376,7]
[388042745,1758987039932,-197.584055,0.00032376,7]
[388042746,1758987039941,-151.0,0.00032376,7]
[388042747,1758987039950,-151.0,0.00032376,7]
[388042748,1758987039960,-535.317788,0.00032376,7]
[388042749,1758987039969,-535.317788,0.00032376,7]
[388042750,1758987039978,-535.317788,0.00032376,7]
[388042752,1758987039987,-535.317788,0.00032376,7]
[388042754,1758987039997,-151.0,0.00032376,7]
[388042755,1758987040007,-151.0,0.00032376,7]
[388042756,1758987040017,-151.0,0.00032376,7]
[388042757,1758987040027,-151.0,0.00032376,7]
[388042759,1758987040037,-151.0,0.00032376,7]
[388042761,1758987040046,-151.0,0.00032376,7]
[388042763,1758987040055,-151.0,0.00032376,7]
[388042765,1758987040065,-151.0,0.00032376,7]
[388042766,1758987040075,-151.0,0.00032376,7]
[388042767,1758987040084,-151.0,0.00032376,7]
[388042768,1758987040094,-151.0,0.00032376,7]
[388042769,1758987040103,-151.0,0.00032376,7]
[388042770,1758987040112,-151.0,0.00032376,7]
[388042771,1758987040122,-151.0,0.00032376,7]
[388042772,1758987040132,-151.0,0.00032376,7]
[388042773,1758987040141,-297.547364,0.00032376,7]
[388042774,1758987040151,-300.607887,0.00032376,7]
[388042775,1758987040160,-300.607887,0.00032376,7]
[388042776,1758987040169,-300.607887,0.00032376,7]
[388042777,1758987040178,-151.0,0.00032376,7]
[388042778,1758987040187,-151.968022,0.00032376,7]
[388042779,1758987040197,-151.0,0.00032376,7]
[388042780,1758987040207,-151.0,0.00032376,7]
[388042781,1758987040216,-151.0,0.00032376,7]
[388042782,1758987040225,-151.0,0.00032376,7]
[388042784,1758987040235,-151.0,0.00032376,7]
[388042785,1758987040244,-151.0,0.00032376,7]
[388042786,1758987040254,-151.0,0.00032376,7]
[388042787,1758987040263,-365.846877,0.00032376,7]
[388042788,1758987040272,-151.0,0.00032376,7]
[388042789,1758987040282,-151.0,0.00032376,7]
[388042790,1758987040291,-151.0,0.00032376,7]
[388042791,1758987040301,-151.0,0.00032376,7]
[388042792,1758987040310,-365.846877,0.00032376,7]
[388042793,1758987040319,-151.0,0.00032376,7]
[388042794,1758987040328,-365.846877,0.00032376,7]
[388042795,1758987040338,-151.0,0.00032376,7]
[388042796,1758987040347,-151.0,0.00032376,7]
[388042797,1758987040357,-365.846877,0.00032376,7]
[388042798,1758987040366,-151.0,0.00032376,7]
[388042799,1758987040375,-151.0,0.00032376,7]
[388042800,1758987040384,-151.0,0.00032376,7]
[388042801,1758987040393,-171.66612,0.00032376,7]
[388042802,1758987040403,-1371.244277,0.00032376,7]
[388042803,1758987040412,-1371.244277,0.00032376,7]
[388042804,1758987040422,-1371.244277,0.00032376,7]
[388042805,1758987040431,-1371.244277,0.00032376,7]
[388042806,1758987040440,-151.0,0.00032376,7]
[388042807,1758987040449,-151.0,0.00032376,7]
[388042808,1758987040613,-151.0,0.00032376,7]
[388042809,1758987040622,-151.0,0.00032376,7]
[388042810,1758987040632,-166.315696,0.00032376,7]
[388042811,1758987040645,-151.0,0.00032376,7]
[388042812,1758987040654,-151.0,0.00032376,7]
[388042813,1758987040664,-1215.184263,0.00032376,7]
[388042814,1758987040673,-1215.184263,0.00032376,7]
[388042815,1758987040683,-1215.184263,0.00032376,7]
[388042816,1758987040693,-151.0,0.00032376,7]
[388042817,1758987040703,-151.0,0.00032376,7]
[388042818,1758987040712,-1215.184263,0.00032376,7]
[388042819,1758987040722,-151.0,0.00032376,7]
[388042820,1758987040731,-151.0,0.00032376,7]
[388042821,1758987040741,-151.0,0.00032376,7]
[388042822,1758987040750,-151.0,0.00032376,7]
[388042823,1758987040759,-151.0,0.00032376,7]
[388042824,1758987040769,-151.0,0.00032376,7]
[388042825,1758987040778,-151.0,0.00032376,7]
[388042826,1758987040788,-151.0,0.00032376,7]
[388042827,1758987040797,-153.726407,0.00032376,7]
[388042828,1758987040807,-151.0,0.00032376,7]
[388042829,1758987040817,-151.0,0.00032376,7]
[388042830,1758987040826,-151.0,0.00032376,7]
[388042831,1758987040835,-151.0,0.00032376,7]
[388042832,1758987040845,-151.0,0.00032376,7]
[388042833,1758987040855,-220.335232,0.00032376,7]
[388042834,1758987040864,-151.0,0.00032376,7]
[388042835,1758987040874,-151.0,0.00032376,7]
[388042836,1758987040883,-151.0,0.00032376,7]
[388042837,1758987040893,-500.0,0.00032385,5]
[388042838,1758987040903,-500.0,0.00032385,5]
[388042839,1758987040913,-500.0,0.00032385,5]
[388042840,1758987040923,-500.0,0.00032385,5]
[388042841,1758987040932,-221.06190104,0.00032385,5]
[388042842,1758987040941,-500.0,0.00032385,5]
[388042843,1758987040950,-500.0,0.00032385,2]
[388042844,1758987040960,-410.57779206,0.000324,5]
[388042845,1758987040969,-500.0,0.000324,5]
[388042846,1758987040979,-500.0,0.000324,5]
[388042847,1758987040989,-500.0,0.000324,5]
[388042848,1758987040999,-500.0,0.000324,5]
[388042849,1758987041008,-374.63233655,0.000324,5]
[388042850,1758987041018,-500.0,0.000324,5]
[388042851,1758987041027,-151.0,0.000324,16]
[388042852,1758987041037,-151.0,0.000324,10]
[388042853,1758987041046,-1691.45,0.000324,2]
[388042854,1758987041056,-500.0,0.00032406,5]
[388042855,1758987041066,-500.0,0.00032406,5]
[388042856,1758987041075,-500.0,0.00032406,2]
[388042857,1758987041084,-500.0,0.00032406,5]
[388042858,1758987041094,-188.417543,0.00032438,60]
[388042859,1758987041103,-11531.88946851,0.0003245,2]
[388042860,1758987041112,-174.64896442,0.00032459,2]
[388042861,1758987041123,-170.35969093,0.00032459,2]
[388042862,1758987041132,-204.39112625,0.00032466,2]
[388042863,1758987041142,-367.90402726,0.00032466,2]
[388042864,1758987041151,-1000.0,0.00032475,2]
[388042865,1758987041161,-1000.0,0.00032475,2]
[388042866,1758987041170,-1000.0,0.00032475,2]
[388042867,1758987041179,-1000.0,0.00032475,2]
[388042868,1758987041188,-1033.00774378,0.00032479,2]
[388042869,1758987041198,-151.0,0.0003249,7]
[388042870,1758987041207,-264.036494,0.0003249,7]
[388042871,1758987041217,-151.0,0.0003249,7]
[388042872,1758987041226,-151.0,0.0003249,7]
[388042873,1758987041236,-151.0,0.0003249,7]
[388042874,1758987041245,-151.0,0.0003249,7]
[388042875,1758987041254,-698.590361,0.0003249,7]
[388042876,1758987041264,-195.623985,0.0003249,7]
[388042877,1758987041274,-698.590361,0.0003249,7]
[388042878,1758987041284,-195.623985,0.0003249,7]
[388042879,1758987041294,-698.590361,0.0003249,7]
[388042880,1758987041304,-195.623985,0.0003249,7]
[388042881,1758987041313,-698.590361,0.0003249,7]
[388042882,1758987041323,-195.623985,0.0003249,7]
[388042883,1758987041334,-197.584055,0.0003249,7]
[388042884,1758987041343,-197.584055,0.0003249,7]
[388042885,1758987041353,-197.584055,0.0003249,7]
[388042886,1758987041362,-151.0,0.0003249,7]
[388042887,1758987041371,-197.584055,0.0003249,7]
[388042888,1758987041380,-151.0,0.0003249,7]
[388042889,1758987041390,-151.0,0.0003249,7]
[388042890,1758987041399,-151.0,0.0003249,7]
[388042891,1758987041408,-224.595644,0.0003249,7]
[388042892,1758987041418,-151.0,0.0003249,7]
[388042893,1758987041427,-263325.41698312,0.000325,10]
[388042894,1758987041436,-151.0,0.000325,7]
[388042895,1758987041445,-151.0,0.000325,7]
[388042896,1758987041455,-151.0,0.000325,7]
[388042897,1758987041464,-151.0,0.000325,7]
[388042898,1758987041473,-151.0,0.000325,7]
[388042899,1758987041483,-151.0,0.000325,7]
[388042900,1758987041492,-151.0,0.000325,7]
[388042901,1758987041501,-151.0,0.000325,7]
[388042902,1758987041510,-154.79856,0.000325,7]
[388042903,1758987041519,-500.0,0.000325,5]
[388042904,1758987041528,-500.0,0.000325,5]
[388042905,1758987041537,-500.0,0.000325,5]
[388042906,1758987041546,-633.35443497,0.000325,5]
[388042907,1758987041556,-500.0,0.000325,5]
[388042908,1758987041565,-500.0,0.000325,5]
[388042909,1758987041574,-151.0,0.000325,7]
[388042910,1758987041583,-151.0,0.000325,7]
[388042911,1758987041592,-151.0,0.000325,7]
[388042912,1758987041601,-151.0,0.000325,7]
[388042913,1758987041610,-151.0,0.000325,7]
[388042914,1758987041619,-151.0,0.000325,7]
[388042915,1758987041629,-151.0,0.000325,7]
[388042916,1758987041641,-151.0,0.000325,7]
[388042917,1758987041650,-151.0,0.000325,7]
[388042918,1758987041659,-151.0,0.000325,7]
[388042919,1758987041668,-204.816858,0.000325,7]
[388042920,1758987041677,-192.066194,0.000325,7]
[388042921,1758987041687,-698.590361,0.000325,7]
[388042922,1758987041696,-195.623985,0.000325,7]
[388042923,1758987041706,-698.590361,0.000325,7]
[388042924,1758987041717,-195.623985,0.000325,7]
[388042925,1758987041726,-698.590361,0.000325,7]
[388042926,1758987041735,-195.623985,0.000325,7]
[388042927,1758987041744,-698.590361,0.000325,7]
[388042928,1758987041756,-195.623985,0.000325,7]
[388042929,1758987041765,-197.584055,0.000325,7]
[388042930,1758987041774,-197.584055,0.000325,7]
[388042931,1758987041783,-197.584055,0.000325,7]
[388042932,1758987041792,-151.0,0.000325,7]
[388042933,1758987041801,-197.584055,0.000325,7]
[388042934,1758987041810,-151.0,0.000325,7]
[388042935,1758987041819,-151.0,0.000325,7]
[388042936,1758987041828,-535.317788,0.000325,7]
[388042937,1758987041837,-535.317788,0.000325,7]
[388042938,1758987041846,-535.317788,0.000325,7]
[388042939,1758987041855,-535.317788,0.000325,7]
[388042940,1758987041864,-151.0,0.000325,7]
[388042941,1758987041873,-151.0,0.000325,7]
[388042942,1758987041882,-172.979836,0.000325,7]
[388042943,1758987041891,-151.0,0.000325,7]
[388042944,1758987041899,-151.0,0.000325,7]
[388042945,1758987041908,-151.0,0.000325,7]
[388042946,1758987041917,-243.884638,0.000325,7]
[388042947,1758987041926,-151.0,0.000325,7]
[388042948,1758987041936,-151.0,0.000325,7]
[388042949,1758987041945,-151.0,0.000325,7]
[388042950,1758987041954,-233.939016,0.000325,7]
[388042951,1758987041963,-151.0,0.000325,7]
[388042952,1758987041972,-151.0,0.000325,7]
[388042953,1758987041981,-151.0,0.000325,7]
[388042954,1758987041990,-300.607887,0.000325,7]
[388042955,1758987042000,-300.607887,0.000325,7]
[388042956,1758987042009,-300.607887,0.000325,7]
[388042957,1758987042018,-151.0,0.000325,7]
[388042958,1758987042026,-151.0,0.000325,7]
[388042959,1758987042035,-151.0,0.000325,7]
[388042960,1758987042044,-151.0,0.000325,7]
[388042961,1758987042053,-151.0,0.000325,7]
[388042962,1758987042062,-151.0,0.000325,7]
[388042963,1758987042071,-151.0,0.000325,7]
[388042964,1758987042080,-365.846877,0.000325,7]
[388042965,1758987042089,-291.608626,0.000325,7]
[388042966,1758987042098,-151.0,0.000325,7]
[388042967,1758987042106,-151.0,0.000325,7]
[388042968,1758987042115,-151.0,0.000325,7]
[388042969,1758987042124,-365.846877,0.000325,7]
[388042970,1758987042133,-365.846877,0.000325,7]
[388042971,1758987042142,-151.0,0.000325,7]
[388042972,1758987042151,-151.0,0.000325,7]
[388042973,1758987042159,-151.0,0.000325,7]
[388042974,1758987042168,-365.846877,0.000325,7]
[388042975,1758987042177,-151.0,0.000325,7]
[388042976,1758987042186,-298.348683,0.000325,7]
[388042977,1758987042195,-151.0,0.000325,7]
[388042978,1758987042204,-1371.244277,0.000325,7]
[388042979,1758987042213,-1371.244277,0.000325,7]
[388042980,1758987042223,-1371.244277,0.000325,7]
[388042981,1758987042232,-1371.244277,0.000325,7]
[388042982,1758987042241,-6095.581934,0.000325,7]
[388042983,1758987042250,-151.0,0.000325,7]
[388042984,1758987042259,-151.0,0.000325,7]
[388042985,1758987042269,-151.0,0.000325,7]
[388042986,1758987042277,-151.0,0.000325,7]
[388042987,1758987042286,-151.0,0.000325,7]
[388042988,1758987042295,-1215.184263,0.000325,7]
[388042989,1758987042304,-1215.184263,0.000325,7]
[388042990,1758987042312,-1215.184263,0.000325,7]
[388042991,1758987042321,-1215.184263,0.000325,7]
[388042992,1758987042330,-151.0,0.000325,7]
[388042993,1758987042340,-151.0,0.000325,7]
[388042994,1758987042349,-151.0,0.000325,7]
[388042995,1758987042360,-151.0,0.000325,7]
[388042996,1758987042369,-151.0,0.000325,7]
[388042997,1758987042378,-235.271243,0.000325,7]
[388042998,1758987042388,-151.0,0.000325,7]
[388042999,1758987042397,-151.0,0.000325,7]
[388043000,1758987042407,-151.0,0.000325,7]
[388043001,1758987042417,-176.34166815,0.000325,7]
[388043002,1758987042426,-257.324518,0.000325,7]
[388043003,1758987042435,-151.0,0.000325,7]
[388043004,1758987042444,-168.0,0.00032573,2]
[388043005,1758987042453,-439.0,0.00032665,2]
[388043006,1758987042462,-1033.00774378,0.00032683,2]
[388043007,1758987042472,-501.69416085,0.00032727,5]
[388043008,1758987042481,-457.48672273,0.00032751,2]
[388043009,1758987042491,-800.0,0.00032794,2]
[388043010,1758987042500,-800.0,0.0003281,2]
[388043011,1758987042510,-328.0,0.00032838,7]
[388043012,1758987042520,-166.0,0.00032838,7]
[388043013,1758987042529,-166.0,0.00032838,7]
[388043014,1758987042539,-328.0,0.00032838,7]
[388043015,1758987042548,-328.0,0.00032838,7]
[388043016,1758987042557,-328.0,0.00032838,7]
[388043017,1758987042566,-328.0,0.00032838,7]
[388043018,1758987042575,-328.0,0.00032838,7]
[388043019,1758987042584,-328.0,0.00032838,7]
[388043020,1758987042593,-328.0,0.00032838,7]
[388043021,1758987042602,-328.0,0.00032838,7]
[388043022,1758987042611,-328.0,0.00032838,7]
[388043023,1758987042620,-166.0,0.00032838,7]
[388043024,1758987042629,-172.0,0.00032838,7]
[388043025,1758987042641,-328.0,0.00032838,7]
[388043026,1758987042651,-328.0,0.00032838,7]
[388043027,1758987042659,-328.0,0.00032838,7]
[388043028,1758987042668,-328.0,0.00032838,7]
[388043029,1758987042677,-328.0,0.00032838,7]
[388043030,1758987042686,-328.0,0.00032838,7]
[388043031,1758987042694,-328.0,0.00032838,7]
[388043032,1758987042703,-328.0,0.00032838,7]
[388043033,1758987042712,-328.0,0.00032838,7]
[388043034,1758987042721,-328.0,0.00032838,7]
[388043035,1758987042730,-328.0,0.00032838,7]
[388043036,1758987042740,-328.0,0.00032838,7]
[388043037,1758987042748,-328.0,0.00032838,7]
[388043038,1758987042757,-328.0,0.00032838,7]
[388043039,1758987042766,-328.0,0.00032838,7]
[388043040,1758987042775,-328.0,0.00032838,7]
[388043041,1758987042784,-328.0,0.00032838,7]
[388043042,1758987042793,-328.0,0.00032838,7]
[388043043,1758987042802,-328.0,0.00032838,7]
[388043044,1758987042811,-328.0,0.00032838,7]
[388043045,1758987042820,-328.0,0.00032838,7]
[388043046,1758987042829,-328.0,0.00032838,7]
[388043047,1758987042838,-328.0,0.00032838,7]
[388043048,1758987042847,-328.0,0.00032838,7]
[388043049,1758987042856,-328.0,0.00032838,7]
[388043050,1758987042865,-328.0,0.00032838,7]
[388043051,1758987042874,-328.0,0.00032838,7]
[388043052,1758987042884,-328.0,0.00032838,7]
[388043053,1758987042893,-328.0,0.00032838,7]
[388043054,1758987042948,-328.0,0.00032838,7]
[388043055,1758987042957,-328.0,0.00032838,7]
[388043056,1758987042965,-328.0,0.00032838,7]
[388043057,1758987042975,-328.0,0.00032838,7]
[388043058,1758987042984,-328.0,0.00032838,7]
[388043059,1758987042993,-328.0,0.00032838,7]
[388043060,1758987043002,-328.0,0.00032838,7]
[388043061,1758987043012,-328.0,0.00032838,7]
[388043062,1758987043021,-328.0,0.00032838,7]
[388043063,1758987043031,-328.0,0.00032838,7]
[388043064,1758987043040,-328.0,0.00032838,7]
[388043065,1758987043050,-401.95584941,0.00032838,7]
[388043066,1758987043059,-6095.581934,0.00032838,7]
[388043067,1758987043068,-151.0,0.00032838,7]
[388043068,1758987043078,-151.0,0.00032838,7]
[388043069,1758987043087,-151.0,0.00032838,7]
[388043070,1758987043096,-151.0,0.00032838,7]
[388043071,1758987043105,-151.0,0.00032838,7]
[388043072,1758987043115,-1215.184263,0.00032838,7]
[388043073,1758987043124,-1215.184263,0.00032838,7]
[388043074,1758987043133,-1215.184263,0.00032838,7]
[388043075,1758987043143,-1215.184263,0.00032838,7]
[388043076,1758987043152,-151.0,0.00032838,7]
[388043077,1758987043162,-151.0,0.00032838,7]
[388043078,1758987043172,-177.686308,0.00032838,7]
[388043079,1758987043182,-151.0,0.00032838,7]
[388043080,1758987043192,-151.0,0.00032838,7]
[388043081,1758987043200,-151.0,0.00032838,7]
[388043082,1758987043210,-151.0,0.00032838,7]
[388043083,1758987043219,-151.0,0.00032838,7]
[388043084,1758987043229,-800.0,0.00032858,2]
[388043085,1758987043238,-175.23520616,0.00032865,2]
[388043086,1758987043248,-800.0,0.00032876,2]
[388043087,1758987043257,-481.892705,0.00032877,2]
[388043088,1758987043266,-1033.00774378,0.00032886,2]
[388043089,1758987043275,-800.0,0.00032887,2]
[388043090,1758987043284,-725.0,0.000329,7]
[388043091,1758987043293,-439.0,0.00032909,2]
[388043092,1758987043302,-1000.0,0.00032921,5]
[388043093,1758987043311,-1000.0,0.00032921,5]
[388043094,1758987043320,-339.97656543,0.00032921,5]